Cogmind - Beta 13 @@@ ROGUE MODE // 2024.03.17 @ 17:44:42 Player: Wakanaka Result: Destroyed by X-62 Marksman with Gauss Rifle Performance ------------- Evolutions (2) 1000 Regions Visited (3) 600 Robots Destroyed (44) 220 Value Destroyed (1414) 1414 Prototype IDs (5) 100 Alien Tech Used (0) 0 Bonus (11) 11 TOTAL SCORE: 3345 Bonus ------- High Alert Combat Kills 11 Cogmind --------- Core Integrity 0/550 Matter 246/300 Energy 160/160 System Corruption 8% Temperature Cool (0) Movement Treading (165) Location -8/Materials Parts ------- > --- POWER (1) -------- Light Nuclear Core > --- PROPULSION (4) --- Light Treads Armored Treads > --- UTILITY (4) ------ Improved Heat Sink Machine Analyzer Hacking Suite Hacking Suite > --- WEAPON (2) ------- Heavy Particle Cannon Improved Datajack > --- INVENTORY (5) ---- Improved Ion Engine ECM Suite Reaction Control System Peak State ------------ > --- POWER ------------ Light Nuclear Core > --- PROPULSION ------- Light Treads Armored Treads Improved VTOL Module > --- UTILITY ---------- Improved Heat Sink Machine Analyzer Hacking Suite Hacking Suite > --- WEAPON ----------- Beam Rifle Heavy Particle Cannon > --- INVENTORY -------- Improved Ion Engine ECM Suite Reaction Control System Improved Datajack [Rating: 28] Favorites ----------- Power Light Nuclear Core Engine Ion Engine Power Core Light Nuclear Core Propulsion Flight Unit Treads Light Treads Leg Aluminum Leg Hover Unit Hover Unit Flight Unit Flight Unit Utility Small Storage Unit Device ECM Suite Storage Small Storage Unit Processor Machine Analyzer Hackware Hacking Suite Protection Backup Plating I Weapon Small Laser Energy Gun Small Laser Energy Cannon Particle Cannon Ballistic Gun Gauss Rifle Ballistic Cannon Improved Light Cannon Special Melee Weapon Improved Datajack Build | -11 -10 -9 -8 ------- Run | Yrd Mat Mat Mat Slots Evolved 4 | . . 2 2 Power . | . . . . Propulsion 2 | . . 2 . Utility 2 | . . . 2 Weapon . | . . . . Parts Attached 60 | 7 2 15 36 Power 8 | 2 . 2 4 Engine 6 | 2 . 2 2 Core 2 | . . . 2 Reactor . | . . . . Propulsion 25 | 2 . 8 15 Treads 3 | . . . 3 Leg 9 | 2 . 3 4 Wheel . | . . . . Hover 4 | . . 3 1 Flight 9 | . . 2 7 Utility 9 | 1 1 1 6 Device 3 | . . 1 2 Storage 2 | 1 1 . . Processor 2 | . . . 2 Hackware 2 | . . . 2 Protection . | . . . . Artifact . | . . . . Weapon 18 | 2 1 4 11 Energy Gun 11 | 2 1 3 5 Energy Cannon 2 | . . . 2 Ballistic Gun 3 | . . . 3 Ballistic Cannon 1 | . . 1 . Launcher . | . . . . Special Weapon . | . . . . Impact Weapon . | . . . . Slashing Weapon . | . . . . Piercing Weapon . | . . . . Special Melee Weapon 1 | . . . 1 Unidentified Prototypes 5 | . . 1 4 Parts Lost 32 | . 1 11 20 Power 4 | . . 2 2 Propulsion 13 | . . 4 9 Utility 4 | . . 2 2 Weapon 11 | . 1 3 7 Highest Loss Streak 8 | . 1 6 8 To Critical Strikes . | . . . . Average Slot Usage (%) 85 | . 98 80 83 Engine 6 | . 14 8 3 Core 2 | . . . 4 Treads 1 | . . . 1 Leg 10 | . 28 18 1 Hover 4 | . . 5 4 Flight 12 | . . 7 17 Device 6 | . . . 10 Storage 10 | . 26 16 3 Processor 9 | . . . 16 Hackware 1 | . . . 2 Energy Gun 16 | . 27 20 12 Energy Cannon 2 | . . . 4 Naked Turns . | . . . . Heaviest Build 22 | 12 14 17 22 Greatest Support 40 | 20 20 40 40 Greatest Overweight (x) 6 | 1 . 5 6 Average Overweight (x) . | . . . . Largest Inventory Capacity 8 | 8 8 8 8 Average Capacity 6 | 7 8 8 6 Most Carried 8 | 5 8 7 8 Average Carried 4 | 2 4 4 4 Final Capacity 8 | 8 8 8 5 Final Carried 8 | 2 8 5 3 Class Distribution -------------------- 83% | Mutant 9% | Scavenger-Mutant 4% | Scavenger-Sprinter Dominant Class ---------------- Mutant | -10/Materials Mutant | -9/Materials Mutant | -8/Materials Resources | -11 -10 -9 -8 ----------- Run | Yrd Mat Mat Mat Matter Collected 743 | 270 10 151 312 Remotely . | . . . . Salvage Created 1855 | . 155 632 1068 Parts 107 | . 5 36 66 Haulers Intercepted 2 | . . . 2 Recyclers Shooed 2 | . . 2 . Parts Field Recycled . | . . . . Retrieved Matter . | . . . . Parts Self-Destructed . | . . . . Prevented . | . . . . Kills | -11 -10 -9 -8 ------- Run | Yrd Mat Mat Mat Combat Hostiles Destroyed 34 | . 4 14 16 Guns 24 | . 4 12 8 Cannons 10 | . . 2 8 Classes Destroyed 11 | . 1 4 6 Builder 1 | . . . 1 Hauler 2 | . . . 2 Recycler 2 | . . 1 1 Operator 1 | . . . 1 Watcher 4 | . . 2 2 Swarmer 6 | . . 3 3 Grunt 16 | . 4 8 4 Sentry 8 | . . 3 5 Specialist 2 | . . . 2 Hunter 1 | . . . 1 Heavy 1 | . . . 1 Best Kill Streak 5 | . 2 5 4 Combat Bots Only 4 | . 2 4 4 Max Kills in Single Turn 2 | . 1 1 2 Gunslinging . | . . . . Exploded . | . . . . Melee . | . . . . Uniques/NPCs Destroyed . | . . . . Combat | -11 -10 -9 -8 -------- Run | Yrd Mat Mat Mat Hostile Shots Fired 400 | . 36 144 220 Missed 112 | . 10 34 68 Damage Taken 3830 | . 321 1370 2139 Core 924 | . 74 285 565 Absorbed by Shields . | . . . . Regen/Repaired (Parts) 14 | . . . 14 Core Remaining (%) 66 | 100 70 28 . Volleys Fired 163 | . 19 69 75 Largest 2 | . 2 2 2 Hottest 131 | . 80 90 131 Shots Fired 309 | . 36 130 143 Gun 254 | . 36 121 97 Cannon 55 | . . 9 46 Launcher . | . . . . Special . | . . . . Kinetic 25 | . . 9 16 Thermal 259 | . 36 121 102 Explosive . | . . . . Electromagnetic 25 | . . . 25 Robot Hit Streak 20 | . 8 10 20 Robot Miss Streak 5 | . 2 5 5 Penetration Max . | . . . . Secondary Targets 3 | . . 1 2 Max Gunslinging Chain 1 | . . 1 1 Shots Hit Robots 203 | . 26 89 88 Core Hits 79 | . 9 31 39 Critical Kills . | . . . . Critical Parts Destroyed . | . . . . Critical Strikes 2 | . . 1 1 Burn 2 | . . 1 1 Melee Attacks 1 | . . . 1 Impact . | . . . . Slashing . | . . . . Piercing . | . . . . Sneak Attacks . | . . . . Combat Hostiles . | . . . . Follow-up Attacks . | . . . . Damage Inflicted 3263 | . 299 1135 1829 Guns 2354 | . 299 971 1084 Cannons 752 | . . 164 588 Explosions 157 | . . . 157 Melee . | . . . . Ramming . | . . . . Kinetic 371 | . . 164 207 Thermal 2398 | . 299 971 1128 Explosive . | . . . . Electromagnetic 494 | . . . 494 Impact . | . . . . Slashing . | . . . . Piercing . | . . . . Highest Corruption 8 | . 1 2 8 Average Corruption 5 | . 1 1 7 Corruption Purged . | . . . . Corruption Blocked . | . . . . Effects 26 | . . 5 21 Message Errors 10 | . . 3 7 Matter Fused 3 | . . . 3 Heat Flow Errors 2 | . . . 2 Energy Discharges 2 | . . 1 1 Parts Fused 1 | . . . 1 Data Loss (minor) 2 | . . . 2 Data Loss (major) 1 | . . 1 . Misfires 2 | . . . 2 Alerts 2 | . . . 2 Weapon Failures 1 | . . . 1 Overload Shots . | . . . . Overflow Damage . | . . . . Projectiles . | . . . . Explosions . | . . . . Melee . | . . . . Knockbacks 1 | . . 1 . Impact . | . . . . Kinetic 1 | . . 1 . Secondary . | . . . . Self-Inflicted Damage 55 | . . . 55 Shots 2 | . . . 2 Rammed . | . . . . Targets Rammed . | . . . . Kicked . | . . . . Crushed . | . . . . Highest Temperature 237 | . 150 206 237 Average Temperature 62 | . 69 48 69 Received Heat Transfer 1119 | . 198 570 351 Effects 1 | . . . 1 Energy Bleed 1 | . . . 1 Siege Activations . | . . . . Robots Corrupted . | . . . . Combat Hostiles . | . . . . Parts Fried 1 | . . . 1 Impact Corruptions . | . . . . Robots Melted . | . . . . Combat Hostiles . | . . . . Parts Melted 11 | . 2 6 3 Heat Transferred 5228 | . 675 2476 2077 Parts Sabotaged . | . . . . Parts Stolen . | . . . . Parts Stripped . | . . . . Power Chain Reactions 3 | . . . 3 Alert | -11 -10 -9 -8 ------- Run | Yrd Mat Mat Mat Peak Influence 429 | . 133 429 336 Initial 109 | . . 55 109 Average 184 | . 60 258 191 Maximum Alert Level 2 | . . 2 1 Low Security (%) 53 | 100 100 26 52 Level 1 43 | . . 62 47 Level 2 2 | . . 11 . Level 3 . | . . . . Level 4 . | . . . . Level 5 . | . . . . High Security . | . . . . Max Security . | . . . . Squads Dispatched 8 | . 1 1 6 Investigation 2 | . . 1 1 Extermination . | . . . . Reinforcement 6 | . 1 . 5 Assault . | . . . . Garrison . | . . . . Intercept . | . . . . Searches Triggered . | . . . . Construction Impeded . | . . . . Haulers Reinforced . | . . . . Active Scanning Responses . | . . . . Cargo Convoy Interrupts . | . . . . Stealth | -11 -10 -9 -8 --------- Run | Yrd Mat Mat Mat Distress Signals 5 | . 1 1 3 Communications Jammed . | . . . . Distress Signals . | . . . . Times Spotted 59 | . 6 23 30 Peak Tracking Total 7 | . 5 7 6 Tactical Retreats 12 | . . 3 9 Traps | -11 -10 -9 -8 ------- Run | Yrd Mat Mat Mat Traps Triggered 5 | . 1 2 2 Indirectly . | . . . . Trap Hack Attempts . | . . . . Triggered . | . . . . Disarmed . | . . . . Reprogrammed . | . . . . Reused . | . . . . Traps Extracted . | . . . . Installed . | . . . . Triggered . | . . . . Machines | -11 -10 -9 -8 ---------- Run | Yrd Mat Mat Mat Machines Disabled 1 | . . . 1 Max in Single Turn 1 | . . . 1 Machines Repaired . | . . . . Machines Dismantled . | . . . . Machines Sabotaged . | . . . . Overloaded Fab Kills . | . . . . Hacking | -11 -10 -9 -8 --------- Run | Yrd Mat Mat Mat Machines Accessed 9 | . 2 2 5 Terminals 6 | . 2 1 3 Fabricators . | . . . . Repair Stations 2 | . . 1 1 Recycling Units . | . . . . Scanalyzers 1 | . . . 1 Garrison Access . | . . . . Total Hacks 31 | . 6 4 21 Successful 26 | . 3 4 19 Failed 5 | . 3 . 2 Catastrophic 1 | . . . 1 Database Lockouts . | . . . . Manual . | . . . . Terminals 18 | . 6 3 9 Fabricators . | . . . . Repair Stations 5 | . . 1 4 Recycling Units . | . . . . Scanalyzers 8 | . . . 8 Garrison Access . | . . . . Terminal Hacks 13 | . 3 3 7 Record 7 | . 1 1 5 Robot Analysis 1 | . 1 . . Level Access Points 1 | . 1 . . Emergency Access Points 1 | . . . 1 Unreport Threat 1 | . . . 1 Locate Traps 1 | . . 1 . Hauler Manifests 1 | . . 1 . Fabricator Hacks . | . . . . Repair Station Hacks 5 | . . 1 4 Scan Component 2 | . . . 2 Repair 2 | . . . 2 Refit 1 | . . 1 . Recycling Unit Hacks . | . . . . Scanalyzer 8 | . . . 8 Insert Component 4 | . . . 4 Analyze 4 | . . . 4 Garrison Access Hacks . | . . . . Unauthorized Hacks . | . . . . Terminals . | . . . . Fabricators . | . . . . Repair Stations . | . . . . Recycling Units . | . . . . Scanalyzers . | . . . . Garrison Access . | . . . . Data Cores Recovered . | . . . . Used . | . . . . Hacking Detections 7 | . 2 1 4 Full Trace Events 2 | . . 1 1 Feedback Events . | . . . . Feedback Blocked . | . . . . Robot Schematics Acquired . | . . . . Robots Built . | . . . . Authchips . | . . . . Time . | . . . . Total Robot Build Rating . | . . . . Part Schematics Acquired 4 | . . . 4 Parts Built . | . . . . Authchips . | . . . . Time . | . . . . Total Part Build Rating . | . . . . Parts Repaired 2 | . . . 2 Time 79 | . . . 79 Parts Recycled . | . . . . Recycled Matter . | . . . . Retrieved Matter . | . . . . Retrieved Components . | . . . . Parts Scanalyzed 4 | . . . 4 Part Schematics Acquired 4 | . . . 4 Parts Damaged . | . . . . Bothacking | -11 -10 -9 -8 ------------ Run | Yrd Mat Mat Mat Used RIF Installer . | . . . . Robots Hacked . | . . . . Non-combat . | . . . . Combat . | . . . . Robot Hacks Applied . | . . . . Relay Couplers Released . | . . . . Fabnet Peak Effective % . | . . . . Robots Rewired . | . . . . Allies Hacked . | . . . . Hacks Repelled . | . . . . Allies | -11 -10 -9 -8 -------- Run | Yrd Mat Mat Mat Total Allies . | . . . . Largest Group . | . . . . Highest-Rated Group . | . . . . Highest-Rated Ally . | . . . . Total Orders . | . . . . Ally Attacks . | . . . . Total Damage . | . . . . Kills . | . . . . Allies Corrupted . | . . . . Allies Melted . | . . . . Intel | -11 -10 -9 -8 ------- Run | Yrd Mat Mat Mat Robot Analysis Total 1 | . 1 . . Derelict Logs Recovered . | . . . . Drone Launches . | . . . . Drone Recoveries . | . . . . Exploration | -11 -10 -9 -8 ------------- Run | Yrd Mat Mat Mat Turns Passed 1851 | 64 257 484 1046 Spaces Moved 1122 | 48 152 205 717 Core 31 | 13 . 7 11 Treads 37 | . . . 37 Legs 319 | 35 152 99 33 Wheels . | . . . . Hover 253 | . . 85 168 Flight 482 | . . 14 468 Fastest Speed 29 | 50 120 56 29 Average Speed 101 | 102 120 106 96 Slowest Speed 360 | 190 120 300 360 Overloaded Moves . | . . . . Propulsion Burnouts . | . . . . Robots Hopped 1 | . . . 1 Cave-ins Triggered . | . . . . Exploration Rate (%) 27 | 4 33 29 44 Regions Visited 3 Branch Regions . Pre-discovered Areas . | . . . . Known Exits Taken 1 | . 1 . . Unknown Exits Taken 2 | 1 . 1 . Scrap Searched . | . . . . Spaces Dug . | . . . . Terrain Destroyed 25 | . . . 25 Melee . | . . . . Projectile 5 | . . . 5 AOE 20 | . . . 20 Terrain Rammed . | . . . . Walls Destroyed . | . . . . Machines Disabled . | . . . . Actions | -11 -10 -9 -8 --------- Run | Yrd Mat Mat Mat Total 1520 | 62 190 342 926 Wait 106 | . 10 39 57 Move 1117 | 47 151 204 715 Hop 1 | . . . 1 Pick Up 54 | 8 8 11 27 Fast Attach 9 | . . . 9 Attach 44 | 6 2 13 23 Detach 1 | . . 1 . Swap 7 | 1 . 2 4 Drop 17 | . . 3 14 Fire 163 | . 19 69 75 Melee 1 | . . . 1 Ram . | . . . . Kick . | . . . . Crush . | . . . . Escape Stasis . | . . . . Rewire . | . . . . Trap . | . . . . Miscellaneous . | . . . . Route ------- -11/Scrapyard -10/Materials (discovered 3 exits: *Mat x3) -9/Materials -8/Materials (discovered 1 exit: [*Fac]) History --------- Turn | Location | Event 9 | -11/Scrapyard | Discovered new exit (range 15) 65 | -11/Scrapyard | Entered Materials 113 | -10/Materials | Identified exit to Materials 317 | -10/Materials | Build established: Mutant 322 | -10/Materials | Entered another Materials area 322 | -9/Materials | Evolved 2 slots: Propulsion x2 569 | -9/Materials | Core integrity fell below 50% 614 | -9/Materials | Lost 6 parts (1p2n1u2w) 788 | -9/Materials | Discovered new exit (range 16) 806 | -9/Materials | Entered another Materials area 806 | -8/Materials | Evolved 2 slots: Utility x2 922 | -8/Materials | Lost 3 parts (1n2w) 1087 | -8/Materials | Lost 3 parts (1p2n) 1619 | -8/Materials | Repaired Corrupted Hacking Suite 1652 | -8/Materials | Repaired Flight Unit? 1706 | -8/Materials | Core integrity fell below 50% 1767 | -8/Materials | Lost 8 parts (1p3n1u3w) 1824 | -8/Materials | Discovered new exit (range 5) 1836 | -8/Materials | Core integrity fell below 20% 1852 | -8/Materials | Destroyed by X-62 Marksman with Gauss Rifle Last Messages --------------- 01825_ Penetrated by Slug. 01827_ H-61 Shepherd calls for reinforcements. 01827_ ALERT: Hostile activity reported, dispatching reinforcements to area. 01827_ Penetrated by Slug. 01828_ Imp. VTOL Module destroyed. 01829_ Acquired 2 matter. 01835_ Penetrated by Slug. 01839_ U-05 Engineer builds a Wall. 01841_ Penetrated by Slug. 01842_ Beam Rifle destroyed. 01844_ Jacked X-62 Marksman... 01844_ Penetrated by Slug. 01846_ U-05 Engineer builds a Wall. 01847_ H-61 Shepherd destroyed. 01851_ U-05 Engineer builds a Wall. 01851_ R-06 Scavenger collects Corrupted Aluminum Leg. 01852_ System corrupted: Component data lost. 01852_ Penetrated by Slug. Map ----- +----------------------------------------------------+ | | | | | | | | | | | | | | | | | | | | | | | | | | | | | | | | | ???????????????????????###############?????####### | | ???????????????????????# """"" ##????# | | ???????????????????????# ""T"" #????#""" | | ???????????????????????#^""" #?????#""" [ | | ""?????????????????????# """ #?????#"S | | ""?????????????????????# """ ^ #?????#""" | | ""?????"""""???????????# #?????# "" | | ???????"""""??##########;#####+#######?????# | | ???????""""" # % =%%!! % [!##?############ | | ?????????? ; @*=% !*%;### # | | ??????????????# u !x g =[#### + | | ??????????????# ################% r + # | | ??????????????#???????# ## #?#[!!#### # | | ??????????????????????##?? < #?##% # ## ## | | ?????????????????????????? #??## ##?# !!! ## | | ?????????????????????????? #???#%#??# !!! ## | | ?????????????????????????? #???# #??# !!! ## | | ????????????????T????????? #???# #??############ | | ????????????????????????? #???# #???????###### | | ?????????????????????????#########+####????# [ | | ????????????????????????????# #????# | | ???????????????????????"????# #????# ### | | ??????????????????????"""???# #????# #?## | | ??????????????????????"""???# """ """ ###### #??? | | ??????????????????????"""???# """ """ + #??? | | ??????????????????????""????# """ """ # #??? | | ?????????????????""???"""???# ###+#####??? | | ?????????????????Y"????""???# # #???? | | ?????????????????""???"""???########### """#???? | | ???????????????????????"??????????????# R"#???? | | ??????????????????????????????????????# """#???? | | ??????????????????????????????????????# #???? | | ??????????????????????????????????????# ! #???? | | ??????????????????????????????????????########???? | +----------------------------------------------------+ Best States ------------- Heat Dissipation 45 Energy Generation 14 Energy Capacity 400 Matter Stores 300 Matter Capacity 300 Sight Range 16 Terrain Scan Density 10 ECM Strength 1 Armor Coverage 80 Evasion (%) 64 Targeting Accuracy 5 Recoil Reduction 2 Offensive Hacking 20 Item Schematics ----------------- Hacking Suite | -8/Materials | Scanalyzed Lgt. Nuclear Core | -8/Materials | Scanalyzed Hvy. EM Shotgun | -8/Materials | Scanalyzed Hvy. Particle Cannon | -8/Materials | Scanalyzed Robot Schematics ------------------ None Fabricated ------------ Nothing Alien Tech Used ----------------- None Achievements -------------- None Challenges ------------ None Game ------ Seed LayeredProtonReplicator Manual? 0 Play Time 00:30:30 Cumulative 54.3 hours Start 2024.03.17 @ 17:13:33 End 2024.03.17 @ 17:44:42 Sessions 1 Manual Loads 0 Difficulty Rogue Special Mode None Game No. 65 Rogue 65 Adventurer 0 Explorer 0 Win Type - Total 0 Types 0/0/0/0/0/0/0/0/0 Lore% 22 Gallery% 32 Achievement% 26 Wizard Run 0 Options --------- Layout 1 ASCII 0 Keyboard 0 Movement Mouse Keybinds 0 Fullscreen 1 Font 24/Smallcaps Map View 50x35 Zoom Use 0% Tactical HUD 1 Map Filters NONE Filters NONE Steam 1 RUN: 63e28b35-b8e0-4700-84f2-a63668a2a952